bitfinex-derivatives/quotes_ETHF0:USTF0_20251117
["timestamp","ask_amount","ask_price","bid_price","bid_amount"]
[1763422185668,1.17987048,3019.6,3019.3,0.00497116]
[1763422185876,4.38749561,3019.4,3019.3,0.00497116]
[1763422187778,3.2078,3019.4,3019.3,0.71917116]
[1763422187965,4.46769561,3019.6,3019.3,0.00497116]
[1763422188165,3.2078,3019.4,3019.3,0.00497116]
[1763422188968,1.17969561,3019.5,3019.4,0.7142]
[1763422189174,4.46769561,3019.6,3019.5,1.1112]
[1763422189773,3.288,3019.6,3019.5,1.1112]
[1763422190078,3.288,3019.6,3019.5,0.397]
[1763422190279,4.46769561,3019.6,3019.5,0.397]
[1763422190878,1.17969561,3019.6,3019.5,0.397]
[1763422191579,1.17969561,3019.6,3019.3,0.00497116]
[1763422191780,9.92403388,3019.7,3019.3,0.00497116]
[1763422191781,3.2078,3019.4,3019.3,0.00497116]
[1763422192080,4.38749561,3019.4,3019.3,0.00497116]
[1763422192279,4.3886464,3019.4,3019.3,0.00497116]
[1763422192581,3.2078,3019.4,3019.3,0.00497116]
[1763422195887,11.62460797,3019.4,3018.5,0.42083588]
[1763422196077,3.2078,3018.6,3018.5,0.42083588]
[1763422196276,11.3548,3018.6,3018.5,1.13503588]
[1763422197776,0.00497116,3018.9,3018.8,0.7142]
[1763422199283,0.00497116,3018.9,3018.8,3.922]
[1763422200483,1.18072254,3019.4,3019.2,0.6232]
[1763422200683,1.18072254,3019.4,3019.3,0.6232]
[1763422201380,1.18072254,3019.4,3019.0,0.3552]
[1763422201581,1.18072254,3019.4,3019.3,0.6232]
[1763422202179,1.18072254,3019.4,3019.0,0.3552]
[1763422202378,1.18072254,3019.1,3018.8,3.2078]
[1763422202574,1.18072254,3018.9,3018.5,0.42083588]
[1763422202775,9.32572254,3018.9,3018.5,0.42083588]
[1763422203186,1.18072254,3018.8,3018.5,0.42083588]
[1763422203586,1.18072254,3018.7,3018.5,0.42083588]
[1763422204181,1.18072254,3018.7,3018.2,0.00497116]
[1763422204182,3.2078,3018.6,3018.2,0.00497116]
[1763422204388,1.76905113,3018.4,3017.5,0.397]
[1763422204696,4.38691367,3017.8,3017.5,0.397]
[1763422204891,8.145,3017.7,3017.6,0.6232]
[1763422205297,8.1480613,3017.7,3017.6,0.00263216]
[1763422205687,8.1480613,3017.7,3017.6,0.62583216]
[1763422205893,6.1800613,3017.7,3017.6,0.62583216]
[1763422206088,0.6562613,3017.7,3017.6,0.00263216]
[1763422206294,0.0030613,3017.7,3017.6,0.62583216]
[1763422206892,0.6562613,3017.7,3017.6,0.00263216]
[1763422208997,0.0030613,3017.7,3017.6,0.62583216]
[1763422209201,0.6562613,3017.7,3017.6,0.62583216]
[1763422209402,0.0030613,3017.7,3017.6,0.62583216]
[1763422209702,0.6562613,3017.7,3017.6,0.62583216]
[1763422210198,0.0030613,3017.7,3017.6,0.62583216]
[1763422211102,8.145,3018.4,3018.0,0.3552]
[1763422211103,8.7982,3018.4,3018.0,0.3552]
[1763422211306,8.7982,3018.4,3017.8,3.2078]
[1763422212001,8.80222614,3018.4,3017.8,3.2078]
[1763422212193,8.8071973,3018.4,3017.8,3.2078]
[1763422212394,0.6532,3017.9,3017.8,3.2078]
[1763422212802,0.6532,3017.9,3017.8,3.831]
[1763422212994,8.1539973,3018.4,3017.8,3.831]
[1763422213498,0.6532,3017.9,3017.8,0.6232]
[1763422213699,8.1539973,3018.4,3017.8,0.6232]
[1763422214000,0.6532,3017.9,3017.6,0.00263216]
[1763422214202,8.1539973,3018.4,3017.8,0.6232]
[1763422215503,8.1539973,3018.4,3017.6,0.00263216]
[1763422215504,0.6532,3017.7,3017.6,0.62583216]
[1763422215699,0.6532,3017.7,3017.6,0.00263216]
[1763422220697,3.5849,3018.0,3017.3,0.00497116]
[1763422220698,0.6115,3017.4,3017.3,0.00497116]
[1763422221004,8.7545,3017.4,3017.3,0.00497116]
[1763422221701,8.7545,3017.4,3017.3,0.00734832]
[1763422221903,0.6115,3017.4,3017.3,0.00734832]
[1763422222103,8.7545,3017.4,3017.3,0.00734832]
[1763422226311,8.143,3017.4,3017.3,0.64614832]
[1763422227113,8.7545,3017.4,3017.3,0.00734832]
[1763422230214,8.7545,3017.4,3017.3,0.61544832]
[1763422230816,8.7545,3017.4,3017.3,0.00734832]
[1763422232703,0.5779,3017.4,3017.3,0.61544832]
[1763422233609,0.5779,3017.4,3017.3,0.00734832]
[1763422234413,1.75701367,3017.4,3017.3,0.00734832]
[1763422235411,0.5779,3016.7,3016.6,3.2078]
[1763422235717,0.5779,3016.7,3016.6,3.8159]
[1763422236211,0.3428,3017.0,3016.6,3.8159]
[1763422236412,0.928,3017.0,3016.6,3.2078]
[1763422236619,0.928,3017.0,3016.6,3.21188267]
[1763422236819,0.5779,3016.7,3016.6,3.81998267]
[1763422237312,1.18043158,3017.3,3017.0,0.3683]
[1763422237619,0.5779,3017.1,3017.0,0.9764]
[1763422238009,0.5779,3017.1,3016.6,3.21188267]
[1763422238310,0.5779,3016.7,3016.6,3.81998267]
[1763422242017,0.5779,3016.7,3016.6,3.21188267]
[1763422242514,0.5779,3016.7,3016.6,3.81998267]
[1763422243416,0.5779,3016.7,3016.6,3.21188267]
[1763422243614,0.5779,3015.9,3015.6,1.18759541]
[1763422243815,0.5779,3015.9,3015.1,1.76930504]
[1763422243816,0.5779,3015.6,3015.5,0.9633]
[1763422244020,3.477,3016.0,3015.5,0.9633]
[1763422244416,3.7857,3016.0,3015.9,0.6081]
[1763422244618,4.08599261,3016.0,3015.9,0.00395126]
[1763422245919,5.2668561,3016.0,3015.9,0.00395126]
[1763422246725,3.78979261,3016.0,3015.9,0.61205126]
[1763422247115,4.08599261,3016.0,3015.9,0.00395126]
[1763422247516,3.78979261,3016.0,3015.9,0.61205126]
[1763422249024,4.08599261,3016.0,3015.9,0.00395126]
[1763422249328,4.08599261,3016.0,3015.6,0.00497116]
[1763422249329,0.5779,3015.7,3015.6,0.00497116]
[1763422250427,0.5779,3015.7,3015.6,0.00766519]
[1763422252724,4.6889561,3016.0,3014.6,3.2078]
[1763422252725,0.5779,3014.7,3014.6,3.2078]
[1763422252915,0.5779,3014.6,3014.5,0.9764]
[1763422253120,0.5779,3014.6,3014.5,0.6081]
[1763422253823,0.5779,3014.3,3014.2,0.61307116]
[1763422254127,0.5779,3014.3,3014.2,0.61645567]
[1763422254322,0.00497116,3014.6,3014.2,0.61645567]
[1763422254626,0.5779,3014.3,3014.2,0.61645567]
[1763422256732,0.00497116,3014.6,3014.2,0.61645567]
[1763422258830,0.58287116,3014.6,3014.5,0.6081]
[1763422259730,0.00497116,3014.6,3014.5,0.9269]
[1763422260320,0.5113,3014.3,3014.2,3.77055567]
[1763422260524,0.00497116,3014.6,3014.5,0.8732]
[1763422261230,0.5113,3014.3,3014.2,3.21615567]
[1763422261423,0.00497116,3014.6,3014.2,3.77055567]
[1763422262029,0.5113,3014.3,3014.2,3.21615567]
[1763422262225,0.51627116,3014.6,3014.5,0.5544]
[1763422262422,0.00497116,3014.6,3014.5,0.8732]
[1763422262616,1.77129523,3015.8,3014.5,0.8732]
[1763422262617,3.2078,3015.3,3015.2,0.5544]
[1763422262822,3.2078,3015.7,3015.6,0.5544]
[1763422263022,0.00409261,3016.0,3015.9,0.5544]
[1763422263926,0.51539261,3016.0,3015.5,3.5266]
[1763422265529,0.51539261,3016.0,3015.1,3.7622]
[1763422265530,0.5113,3015.2,3015.1,3.7622]
[1763422265726,0.3237,3015.5,3015.1,3.7622]
[1763422266234,3.2078,3015.8,3015.1,3.7622]
[1763422266643,3.2078,3015.8,3015.7,0.5544]
[1763422267927,0.00409261,3016.0,3015.9,0.5544]
[1763422268123,3.2078,3016.6,3016.5,0.8732]
[1763422268432,3.2078,3016.6,3016.1,3.2078]
[1763422268433,3.7191,3016.6,3016.1,3.2078]
[1763422268632,11.25966349,3017.4,3016.5,0.8732]
[1763422268831,0.5113,3016.6,3016.5,3.2078]
[1763422269022,0.5113,3016.6,3016.1,3.2078]
[1763422269228,0.51532015,3016.6,3016.1,3.2114933]
[1763422269425,0.00402015,3016.6,3016.5,0.8732]
[1763422269629,0.00402015,3016.6,3016.5,0.5544]
[1763422269829,0.00402015,3016.6,3016.1,3.2114933]
[1763422269830,0.51532015,3016.6,3016.1,3.2114933]
[1763422270635,0.00402015,3016.6,3016.5,0.8732]
[1763422270935,0.51532015,3016.6,3016.1,3.2114933]
[1763422271325,0.5113,3016.2,3016.1,3.2114933]
[1763422273733,0.00402015,3016.6,3016.1,3.7658933]
[1763422274236,0.00402015,3016.6,3016.5,0.8732]
[1763422274738,3.2078,3017.7,3017.3,0.5544]
[1763422275439,7.3823,3017.4,3017.0,0.3188]
[1763422275634,7.38634621,3017.4,3017.0,0.3188]
[1763422276233,7.38634621,3017.4,3016.5,0.3188]
[1763422276234,3.2078,3017.3,3016.5,0.3188]
[1763422276433,3.2078,3016.9,3016.2,3.2078]
[1763422277031,3.2078,3016.9,3016.8,0.5544]
[1763422277237,3.7191,3016.9,3016.2,3.2078]
[1763422278243,3.7191,3016.9,3015.8,3.2078]
[1763422279939,3.7191,3016.9,3015.9,0.53774]
[1763422280245,3.7191,3016.9,3015.8,3.2078]
[1763422281636,3.7191,3016.9,3015.8,3.74555]
[1763422281832,3.7191,3016.9,3015.9,0.53774]
[1763422282240,3.7191,3016.9,3015.8,3.2078]
[1763422282838,3.7191,3016.9,3015.9,0.53774]
[1763422283038,3.7191,3016.9,3015.8,3.74555]
[1763422283446,3.7191,3016.9,3015.8,3.2078]
[1763422284047,3.7191,3016.9,3015.8,3.74554]
[1763422284343,3.7191,3016.9,3015.8,3.2078]
[1763422284748,3.7191,3016.9,3015.8,3.74556]
[1763422284946,3.7191,3016.9,3015.9,0.53774]
[1763422285249,3.7191,3016.9,3016.2,3.2078]
[1763422285449,3.2078,3016.9,3016.8,0.5117]
[1763422285950,6.87504621,3017.4,3016.8,0.5117]
[1763422287248,0.5065,3016.2,3016.1,0.0036933]
[1763422287544,0.2855,3016.0,3014.5,1.47259541]
[1763422287749,1.18086349,3015.9,3014.5,0.285]
[1763422288141,1.18086349,3015.8,3014.5,0.285]
[1763422288341,1.18086349,3015.7,3014.5,0.285]
[1763422288547,0.00497116,3015.4,3014.8,0.00497116]
[1763422288753,0.5065,3014.9,3014.8,0.00497116]
[1763422288945,0.51079762,3014.9,3014.8,0.00497116]
[1763422289347,0.00429762,3014.9,3014.8,0.47957116]
[1763422289749,0.00429762,3014.9,3014.8,1.01751116]
[1763422289946,0.00497116,3015.4,3015.3,0.4746]
[1763422290848,0.00497116,3015.4,3015.0,0.285]
[1763422291054,0.00821461,3015.4,3015.3,0.4746]
[1763422292954,0.51471461,3015.4,3014.8,0.00497116]
[1763422293548,0.5065,3014.9,3014.8,0.00497116]
[1763422294266,0.00821461,3015.4,3014.8,0.00497116]
[1763422294948,0.00821461,3015.4,3015.3,0.4746]
[1763422296358,0.00821461,3015.4,3014.8,0.00497116]
[1763422296359,0.51471461,3015.4,3014.8,0.00497116]
[1763422296960,0.5065,3014.9,3014.8,0.00497116]
[1763422297152,0.00821461,3015.4,3014.8,0.47957116]
[1763422297356,0.00821461,3015.4,3014.8,0.00497116]
[1763422297357,0.51471461,3015.4,3014.8,0.00497116]
[1763422298559,0.00821461,3015.4,3015.3,0.4746]
[1763422298964,0.00821461,3015.4,3015.3,1.01245]
[1763422299164,0.2855,3016.5,3015.6,0.53778]
[1763422299165,1.18086349,3016.5,3015.6,0.53778]
[1763422299463,1.77129523,3016.7,3015.7,0.53777]
[1763422299464,1.18086349,3016.7,3015.7,0.53777]
[1763422299762,1.18086349,3016.7,3015.5,0.285]
[1763422299763,0.2065,3017.0,3016.0,0.285]
[1763422300062,0.00497116,3016.8,3016.1,0.5377]
[1763422300261,0.00497116,3016.8,3016.2,0.53768]
[1763422300663,0.00497116,3016.8,3016.0,0.285]
[1763422300858,0.00497116,3016.8,3016.1,0.5377]
[1763422301063,0.00497116,3016.8,3016.2,0.53769]
[1763422301260,0.23627116,3016.8,3016.0,0.285]
[1763422301560,0.23627116,3016.8,3015.7,0.53777]
[1763422301862,0.00497116,3016.8,3015.5,0.285]
[1763422302062,0.23627116,3016.8,3015.5,0.285]
[1763422302454,0.23627116,3016.8,3015.7,0.53777]
[1763422303263,0.23627116,3016.8,3015.5,0.285]
[1763422303465,0.23627116,3016.8,3015.7,0.53776]
[1763422303656,0.00497116,3016.8,3015.9,0.53772]
[1763422304364,0.23627116,3016.8,3015.5,0.285]
[1763422304558,0.2855,3016.5,3015.5,0.285]
[1763422305759,0.2855,3016.5,3015.0,0.8229]
[1763422305760,4.171,3016.4,3015.0,0.8229]
[1763422305963,4.171,3016.4,3015.1,0.53788]
[1763422306163,5.35186349,3016.4,3014.8,0.00497116]
[1763422306362,1.18086349,3015.8,3014.8,0.00497116]
[1763422308470,0.5065,3014.9,3014.8,0.00497116]
[1763422308865,0.00497116,3015.2,3014.8,0.47957116]
[1763422309366,0.00497116,3015.2,3015.1,0.4746]
[1763422311165,0.00497116,3015.2,3015.1,1.01248]
[1763422311466,1.18086349,3016.0,3015.1,0.4746]
[1763422311672,1.18086349,3016.0,3015.0,0.285]
[1763422311673,3.71886349,3016.2,3015.4,0.53783]
[1763422311866,3.71886349,3016.2,3015.3,0.53785]
[1763422312068,2.538,3016.2,3015.3,0.53785]
[1763422312262,3.71886349,3016.2,3015.0,0.285]
[1763422312565,0.00497116,3015.9,3015.1,0.53787]
[1763422313470,0.00497116,3015.9,3015.0,0.285]
[1763422315365,0.00497116,3015.9,3015.1,0.53788]
[1763422315667,0.00497116,3015.9,3015.0,0.285]
[1763422316462,1.18583465,3015.9,3014.8,0.00497116]
[1763422317161,1.18086349,3015.8,3014.8,0.00497116]
[1763422317758,1.18086349,3015.8,3015.0,0.2809]
[1763422320874,1.18086349,3015.8,3014.8,0.00497116]
[1763422321065,0.4344,3014.9,3014.8,0.00497116]
[1763422321674,1.32286349,3015.5,3014.8,0.44887116]
[1763422324267,0.4344,3014.9,3014.8,0.00497116]
[1763422326071,1.18086349,3015.1,3014.8,0.44887116]
[1763422326273,0.142,3015.5,3014.8,0.44887116]
[1763422326274,1.18086349,3015.3,3014.8,0.44887116]
[1763422326576,1.18086349,3015.5,3015.2,0.4439]
[1763422326870,1.18086349,3015.8,3015.4,0.4439]
[1763422327075,1.18583465,3015.9,3015.0,0.2809]
[1763422329768,0.00497116,3015.9,3015.8,0.4439]
[1763422331067,0.00497116,3015.9,3015.5,0.2809]
[1763422331068,0.43937116,3015.9,3015.5,0.2809]
[1763422331273,0.43937116,3015.9,3015.0,0.2809]
[1763422331473,0.43937116,3015.9,3015.0,0.8188]
[1763422331676,0.43937116,3015.9,3015.0,0.2809]
[1763422332480,0.43937116,3015.9,3015.1,0.53788]
[1763422333276,0.43937116,3015.9,3015.2,0.53786]
[1763422333580,0.43937116,3015.9,3015.0,0.81878]
[1763422333979,0.43937116,3015.9,3015.1,0.53788]
[1763422334884,0.43937116,3015.9,3015.0,0.8188]
[1763422335072,0.43937116,3015.9,3015.0,0.2809]
[1763422335274,1.62023465,3015.9,3014.8,0.00497116]
[1763422335472,1.18086349,3015.8,3014.8,0.00497116]
[1763422336381,1.18086349,3015.7,3015.0,0.2809]
[1763422336575,1.61526349,3015.8,3015.1,0.53788]
[1763422336776,0.4344,3015.8,3015.0,0.81879]
[1763422337078,0.4344,3015.8,3015.1,0.53788]
[1763422337285,0.4344,3015.8,3015.0,0.2809]
[1763422337583,0.4344,3015.8,3015.0,0.8188]
[1763422337983,0.4344,3015.8,3015.1,0.53788]
[1763422338182,0.4344,3015.8,3015.0,0.8188]
[1763422338379,0.4344,3015.8,3015.0,0.2809]
[1763422338775,1.18583465,3015.9,3015.0,0.2809]
[1763422338776,0.00497116,3015.9,3015.8,0.4125]
[1763422339081,0.00497116,3015.9,3015.8,0.95026]
[1763422339286,1.77129523,3016.6,3015.8,0.95026]
[1763422339287,1.18086349,3016.6,3016.5,0.6189]
[1763422339475,0.00385903,3017.0,3016.9,0.4125]
[1763422339672,0.00385903,3017.0,3016.9,0.00354821]
[1763422339875,0.40575903,3017.0,3016.9,0.00354821]
[1763422340077,0.50285903,3017.0,3016.9,0.00354821]
[1763422340283,6.50285903,3017.0,3016.9,0.00354821]
[1763422340882,0.4019,3016.7,3015.5,0.7929]
[1763422341188,0.4019,3016.7,3015.6,0.53779]
[1763422341384,0.4019,3016.7,3015.5,0.79291]
[1763422341585,1.58137757,3016.7,3015.5,0.79291]
[1763422341788,0.4019,3016.7,3015.8,0.00497116]
[1763422342692,0.4019,3016.7,3016.0,0.2551]
[1763422343786,0.4019,3016.7,3015.8,0.00497116]
[1763422344586,0.4019,3016.7,3016.0,0.79282]
[1763422344787,0.4019,3016.7,3016.0,0.2551]
[1763422347300,0.4019,3016.7,3016.0,0.79282]
[1763422347700,0.4019,3016.7,3016.1,0.5377]
[1763422347903,0.10095903,3017.0,3016.6,0.4125]
[1763422348091,0.4051,3016.7,3016.0,0.79282]
[1763422348394,0.00385903,3017.0,3016.9,0.4003]
[1763422349502,0.40895903,3017.0,3016.5,0.2567]
[1763422349801,0.47635903,3017.0,3016.0,0.79282]
[1763422350103,0.47635903,3017.0,3016.1,0.5377]
[1763422350294,0.47635903,3017.0,3016.2,0.53768]
[1763422351191,0.47635903,3017.0,3016.3,0.53766]
[1763422351391,0.40895903,3017.0,3016.3,0.53766]
[1763422351595,0.40895903,3017.0,3016.5,0.2567]
[1763422353510,0.40895903,3017.0,3016.1,0.5377]
[1763422353511,0.47635903,3017.0,3016.1,0.5377]
[1763422354206,0.40895903,3017.0,3016.3,0.53767]
[1763422354394,0.40895903,3017.0,3016.2,0.53768]
[1763422355300,0.00385903,3017.0,3016.9,0.4003]
[1763422355497,0.40895903,3017.0,3016.5,0.2567]
[1763422356106,0.00385903,3017.0,3016.9,0.4003]
[1763422356501,0.40895903,3017.0,3016.5,0.79433]
[1763422356807,0.00385903,3017.0,3016.9,0.4003]
[1763422357806,0.00385903,3017.0,3016.9,0.93786]
[1763422358107,1.17947757,3017.9,3017.2,0.4003]
[1763422359010,1.1886628,3017.9,3017.2,0.4003]
[1763422360112,0.00918523,3017.9,3017.2,0.4003]
[1763422360407,1.1886628,3017.9,3017.2,0.4003]
[1763422362001,0.00918523,3017.9,3017.8,0.4003]
[1763422362201,0.00918523,3017.9,3017.8,0.40419182]
[1763422362405,0.41428523,3017.9,3017.8,0.40419182]
[1763422362913,0.00918523,3017.9,3017.8,0.40419182]
[1763422363501,0.41428523,3017.9,3017.8,0.00389182]
[1763422363705,0.00918523,3017.9,3017.8,0.40419182]
[1763422365207,0.00918523,3017.9,3017.8,0.94159182]
[1763422366110,0.00918523,3017.9,3017.8,0.40419182]
[1763422367219,1.17947757,3018.9,3018.0,0.79406]
[1763422367816,1.17947757,3018.9,3018.0,0.2567]
[1763422368217,1.17947757,3018.8,3017.8,0.00389182]
[1763422369221,1.18326497,3018.9,3017.8,0.00389182]
[1763422369417,1.18326497,3018.9,3018.0,0.2567]
[1763422370120,0.0037874,3018.9,3018.0,0.2567]
[1763422371519,1.18326497,3018.9,3018.0,0.2567]
[1763422372619,0.0037874,3018.9,3018.2,0.53732]
[1763422372922,0.0037874,3018.9,3018.0,0.2567]
[1763422372923,0.0037874,3018.9,3018.1,0.53735]
[1763422373324,0.0037874,3018.9,3018.8,0.4003]
[1763422374016,0.4088874,3018.9,3018.5,0.2567]
[1763422374816,0.4051,3018.6,3018.0,0.2567]
[1763422375016,0.0037874,3018.9,3018.5,0.657]
[1763422375526,0.4051,3018.6,3018.0,0.2567]
[1763422375817,0.0037874,3018.9,3018.5,0.4003]
[1763422376218,0.4088874,3018.9,3018.8,0.4003]
[1763422377518,0.4088874,3018.9,3018.5,0.2567]
[1763422377723,0.4088874,3018.9,3018.0,0.2567]
[1763422377920,0.4088874,3018.9,3018.0,0.79406]
[1763422378321,0.4088874,3018.9,3018.1,0.53735]
[1763422378521,0.4088874,3018.9,3018.8,0.3873]
[1763422378721,0.4088874,3018.9,3018.2,0.53733]
[1763422379418,0.4088874,3018.9,3018.0,0.2567]
[1763422379727,0.4088874,3018.9,3018.1,0.53735]
[1763422380627,0.4088874,3018.9,3018.8,0.3873]
[1763422381217,0.381,3018.1,3017.8,0.00389182]
[1763422381725,0.381,3017.9,3017.8,0.00389182]
[1763422382126,0.2308,3017.5,3016.5,0.2131]
[1763422382318,1.17947757,3017.9,3016.5,0.2131]
[1763422382518,1.41027757,3018.0,3017.4,0.3873]
[1763422382714,0.381,3017.5,3017.4,0.3873]
[1763422383123,0.381,3017.5,3017.4,0.39049194]
[1763422383424,0.381,3017.5,3017.4,0.00319194]
[1763422383620,1.56047757,3017.9,3017.5,0.2131]
[1763422383824,0.381,3017.9,3017.5,0.2131]
[1763422384426,4.33944873,3018.2,3017.8,0.3873]
[1763422384823,3.15997116,3018.2,3017.8,0.3873]
[1763422385625,0.00497116,3018.2,3017.8,0.3873]
[1763422385930,0.00497116,3018.2,3018.1,0.3873]
[1763422387329,0.00497116,3018.2,3018.1,0.92465]
[1763422387526,0.00497116,3018.2,3018.1,0.3873]
[1763422389130,0.00497116,3018.2,3018.1,0.92465]
[1763422389729,2.7927874,3018.9,3018.8,0.3873]
[1763422389929,0.0037874,3018.9,3018.8,0.3873]
[1763422390235,1.17947757,3019.5,3019.4,0.3873]
[1763422390433,1.17947757,3019.6,3019.5,0.6004]
[1763422390734,1.17947757,3020.1,3019.8,0.3873]
[1763422391033,0.381,3019.6,3019.2,0.00497116]
[1763422391234,0.38368348,3019.6,3019.2,0.00835827]
[1763422392027,0.38368348,3019.6,3019.5,0.6004]
[1763422392028,0.00268348,3019.6,3019.5,0.6004]
[1763422394933,0.00268348,3019.6,3019.5,1.1375]
[1763422395135,0.00268348,3019.6,3019.5,0.6004]
[1763422395526,0.00268348,3019.6,3019.5,1.1375]
[1763422395728,0.00268348,3019.6,3019.5,0.6004]
[1763422396230,0.00268348,3019.6,3019.2,0.00835827]
[1763422396231,0.38368348,3019.6,3019.2,0.00835827]
[1763422396426,0.381,3019.3,3019.2,0.00835827]
[1763422398039,1.18216105,3019.6,3019.2,0.00835827]
[1763422398235,0.3512,3019.3,3019.2,0.00835827]
[1763422399739,6.3512,3019.3,3018.5,0.2131]
[1763422400039,1.18216105,3019.6,3019.2,0.3255]
[1763422400236,0.00268348,3019.6,3019.2,0.3255]
[1763422400738,0.00268348,3019.6,3019.2,0.32863333]
[1763422401336,0.00268348,3019.6,3019.5,0.3255]
[1763422401837,0.00268348,3019.6,3019.5,0.5287]
[1763422402739,0.35388348,3019.6,3019.2,0.00313333]
[1763422402949,0.3512,3019.3,3019.2,0.00313333]
[1763422403245,0.00268348,3019.6,3019.2,0.32863333]
[1763422403629,0.00268348,3019.6,3019.5,0.3255]
[1763422404644,0.00268348,3019.6,3019.5,0.5287]
[1763422407144,0.35388348,3019.6,3019.2,0.00313333]
[1763422407441,0.00268348,3019.6,3019.5,0.5328]
[1763422407648,0.32188348,3019.6,3019.5,0.3267]
[1763422408540,0.32188348,3019.6,3019.2,0.00313333]
[1763422408741,0.00268348,3019.6,3019.5,0.3267]
[1763422409043,0.32188348,3019.6,3019.2,0.00313333]
[1763422410538,0.3192,3019.3,3019.2,0.00313333]
[1763422411043,0.00268348,3019.6,3019.5,0.3267]
[1763422411450,0.32188348,3019.6,3019.5,0.3267]
[1763422411644,0.32188348,3019.6,3019.2,0.00313333]
[1763422411845,0.32188348,3019.6,3019.5,0.3267]
[1763422412751,0.00268348,3019.6,3019.5,0.5328]
[1763422412938,0.00268348,3019.6,3019.5,1.0699]
[1763422413143,1.17947757,3020.5,3019.8,0.53704]
[1763422413338,1.17947757,3020.5,3019.5,6.2061]
[1763422413339,4.221,3020.6,3020.4,0.3267]
[1763422413741,4.221,3020.6,3020.5,0.3267]
[1763422413946,4.221,3020.6,3020.5,0.5328]
[1763422414153,0.00289078,3020.6,3020.5,0.5328]
[1763422415944,0.00289078,3020.6,3020.5,0.3267]
[1763422415945,0.32209078,3020.6,3020.5,0.3267]
[1763422416254,0.00289078,3020.6,3020.5,0.5328]
[1763422417052,0.00289078,3020.6,3020.5,3.7406]
[1763422418947,4.38727757,3021.4,3020.6,0.53689]
[1763422419147,4.38727757,3021.4,3021.0,3.4139]
[1763422419344,0.3192,3021.1,3021.0,3.2078]
[1763422419943,0.3192,3021.1,3020.7,0.00497116]
[1763422419944,0.3192,3020.8,3020.7,0.00497116]
[1763422420653,0.3192,3020.8,3020.7,0.33167116]
[1763422420856,1.18376421,3021.1,3021.0,0.3267]
[1763422421046,0.00428664,3021.1,3021.0,0.5328]
[1763422422149,0.00428664,3021.1,3021.0,3.7406]
[1763422423050,0.32348664,3021.1,3021.0,3.5345]
[1763422423245,0.00428664,3021.1,3021.0,3.7406]
[1763422423451,0.1962,3022.0,3021.7,0.3267]
[1763422423452,1.17947757,3022.0,3021.7,0.3267]
[1763422423647,1.17947757,3022.2,3022.0,0.3267]
[1763422423842,0.3192,3021.8,3021.7,3.2078]
[1763422424452,0.32276344,3021.8,3021.7,3.21019579]
[1763422424750,0.32276344,3021.8,3021.7,3.53689579]
[1763422425954,0.32276344,3021.8,3021.7,0.00239579]
[1763422428558,0.32276344,3021.8,3021.7,0.32909579]
[1763422428860,1.18215991,3022.7,3021.7,9.83899579]
[1763422429064,5.43212689,3023.8,3023.1,3.2078]
[1763422429356,0.53611,3025.1,3023.3,1.18759541]
[1763422429553,0.1962,3025.5,3024.4,0.88195175]
[1763422429749,0.53607,3025.3,3024.5,0.84566037]
[1763422429946,0.00351458,3024.7,3024.6,0.84566037]
[1763422430347,0.1962,3025.5,3024.6,5.03034448]
[1763422430553,0.1962,3025.5,3024.5,0.00367719]
[1763422430554,0.3192,3024.8,3024.7,0.84566037]
[1763422430759,0.1962,3024.6,3024.5,0.00367719]
[1763422431056,0.5236,3024.6,3024.5,0.00367719]
[1763422431256,6.5236,3024.6,3024.5,0.00367719]
[1763422431458,6.52763357,3024.6,3024.5,3.21147719]
[1763422432263,6.20843357,3024.6,3024.5,3.21147719]
[1763422432557,6.52763357,3024.6,3024.5,3.21147719]
[1763422432962,6.52763357,3024.6,3024.2,0.00496278]
[1763422433165,0.1962,3023.4,3022.7,3.2078]
[1763422433361,3.404,3023.4,3022.7,3.2078]
[1763422433566,0.0082,3023.1,3022.7,3.2078]
[1763422434064,0.53646,3023.1,3022.7,3.21203636]
[1763422434763,0.53648,3023.0,3022.7,3.21203636]
[1763422435263,0.53651,3022.9,3022.7,0.00423636]
[1763422436751,0.00493483,3023.2,3022.7,3.21203636]
[1763422436955,0.5365,3022.9,3022.7,3.21203636]
[1763422437565,1.485,3022.8,3022.7,0.00423636]
[1763422438066,1.4932,3022.8,3022.7,0.00423636]
[1763422438362,2.02971,3022.8,3022.7,0.00423636]
[1763422438664,0.53674,3021.8,3021.7,0.096]
[1763422439062,1.48934,3021.8,3021.7,0.096]
[1763422439569,1.50035624,3021.8,3021.7,0.09960757]
[1763422439963,1.485,3020.4,3020.3,0.26071556]
[1763422440157,3.7402,3020.4,3020.3,0.26071556]
[1763422440863,0.53705,3020.1,3020.0,0.00496278]
[1763422441062,3.7402,3020.4,3020.0,0.00754269]
[1763422441262,0.53703,3020.2,3020.0,0.00754269]
[1763422441969,0.53714,3019.6,3018.8,4.08688411]
[1763422442154,0.0082,3020.1,3018.6,41.98759541]
[1763422442155,3.2078,3020.0,3019.3,3.2078]
[1763422442660,3.74487,3020.0,3019.3,3.2078]
[1763422442856,3.21162276,3020.0,3019.3,3.21557897]
[1763422443165,0.00382276,3020.0,3019.7,3.2078]
[1763422443465,0.54089276,3020.0,3019.7,3.2078]
[1763422443668,0.00382276,3020.0,3019.7,3.2078]
[1763422444164,0.00496278,3020.7,3019.8,0.82388921]
[1763422444367,0.5324,3020.4,3019.9,0.82388921]
[1763422444665,0.53705,3020.1,3019.7,3.2078]
[1763422444859,0.53708,3019.9,3019.7,3.2078]
[1763422445062,0.54063439,3019.9,3019.7,3.2078]
[1763422445765,0.5371,3019.8,3019.7,3.2078]
[1763422446553,0.00355439,3019.9,3019.7,3.2078]
[1763422447770,3.7402,3020.4,3019.7,3.2078]
[1763422447968,0.53703,3020.2,3019.7,3.2078]
[1763422448467,0.53705,3020.1,3019.7,3.2078]
[1763422448769,0.54049572,3020.1,3019.7,3.2078]
[1763422448964,0.00344572,3020.1,3019.7,3.2078]
[1763422450860,0.5371,3019.8,3019.7,3.2078]
[1763422451065,0.00344572,3020.1,3019.7,3.2078]
[1763422451970,3.08913859,3020.4,3019.8,0.82335554]
[1763422452167,0.54190278,3020.7,3020.1,3.2078]
[1763422452469,0.00496278,3020.7,3020.1,3.2078]